fUSD/lending_fUSD_20240601
["ID","MTS","AMOUNT","RATE_DAILY","PERIOD"]
[328371691,1717270981578,150.0,0.00013965,2]
[328371692,1717270981772,150.0,0.0001376,2]
[328371693,1717270981803,1215.3580797,0.00013992,2]
[328371694,1717270981837,150.0,0.00013878,2]
[328371695,1717270981868,150.0,0.00013831,2]
[328371696,1717270981899,150.0,0.00013852,2]
[328371697,1717270981933,150.0,0.0001385,2]
[328371698,1717270981980,150.0,0.00013854,2]
[328371699,1717270982046,150.0,0.00013988,2]
[328371700,1717270982088,150.0,0.00013847,2]
[328371701,1717270982148,150.0,0.00013929,2]
[328371702,1717270982189,150.0,0.00013858,2]
[328371703,1717270982233,150.0,0.00013847,2]
[328371704,1717270982266,150.0,0.00013887,2]
[328371705,1717270982300,150.0,0.00013872,2]
[328371706,1717270982475,150.0,0.00013792,2]
[328371707,1717270982508,150.0,0.00013897,2]
[328371708,1717270982541,150.0,0.00013923,2]
[328371709,1717270982573,150.0,0.00013989,2]
[328371710,1717270982613,150.0,0.00013925,2]
[328371711,1717270982646,150.0,0.00013759,2]
[328371712,1717270982678,150.0,0.0001379,2]
[328371713,1717270982716,150.0,0.00013956,2]
[328371714,1717270982764,150.0,0.00013901,2]
[328371715,1717270982818,150.0,0.00013838,2]
[328371716,1717270982858,150.0,0.00013744,2]
[328371717,1717270982920,150.0,0.00013986,2]
[328371718,1717270982984,150.0,0.00013914,2]
[328371719,1717270983017,150.0,0.00013972,2]
[328371720,1717270983069,150.0,0.0001391,2]
[328371721,1717270983123,150.0,0.00013883,2]
[328371722,1717270983182,150.0,0.00013822,2]
[328371723,1717270983231,150.0,0.00013806,2]
[328371724,1717270983285,150.0,0.00013749,2]
[328371725,1717270983342,150.0,0.00013745,2]
[328371726,1717270983395,150.0,0.00013865,2]
[328371727,1717270983441,150.0,0.00013845,2]
[328371728,1717270983501,150.0,0.00013885,2]
[328371729,1717270983555,150.0,0.00013866,2]
[328371730,1717270983590,150.0,0.00013904,2]
[328371731,1717270983669,150.0,0.00013911,2]
[328371732,1717270983705,150.0,0.00013731,2]
[328371733,1717270983763,150.0,0.00013905,2]
[328371734,1717270983818,150.0,0.0001373,2]
[328371735,1717270983876,150.0,0.00013778,2]
[328371736,1717270984014,150.0,0.00013761,2]
[328371737,1717270984069,150.0,0.00013992,2]
[328371738,1717270984122,150.0,0.00013941,2]
[328371739,1717270984214,150.0,0.00013958,2]
[328371740,1717270984270,150.0,0.00013859,2]
[328371741,1717270984318,150.0,0.00013786,2]
[328371742,1717270984522,150.0,0.00013796,2]
[328371743,1717270984562,150.0,0.00013794,2]
[328371744,1717270984630,150.0,0.00013934,2]
[328371745,1717270984707,150.0,0.00013927,2]
[328371746,1717270984762,150.0,0.00013993,2]
[328371747,1717270984833,150.0,0.00013872,2]
[328371748,1717270984898,150.0,0.00013955,2]
[328371749,1717270984962,150.0,0.00013912,2]
[328371750,1717270985065,150.0,0.00013784,2]
[328371751,1717270985097,150.0,0.00013932,2]
[328371752,1717270985157,150.0,0.00013834,2]
[328371753,1717270985205,150.0,0.00013867,2]
[328371754,1717270985267,150.0,0.00013768,2]
[328371755,1717270985329,150.0,0.00013872,2]
[328371756,1717270985386,150.0,0.00013806,2]
[328371757,1717270985440,150.0,0.00013992,2]
[328371758,1717270985493,150.0,0.00013832,2]
[328371759,1717270985526,150.0,0.00013858,2]
[328371760,1717270985560,150.0,0.00013761,2]
[328371761,1717270985602,150.0,0.00013772,2]
[328371762,1717270985649,150.0,0.00013984,2]
[328371763,1717270988804,252.94668078,0.00013926,2]
[328371764,1717271003176,355.69043517,0.00013879,2]
[328371765,1717271007208,10781.3857099,0.00013992,2]
[328371766,1717271011389,428.98998,0.00014,2]
[328371767,1717271033386,150.0,0.00013846,2]
[328371768,1717271043087,718.42864834,0.00014,2]
[328371769,1717271061046,726.3114759,0.00013992,2]
[328371770,1717271065483,601.25398,0.00014,2]
[328371771,1717271104481,150.0,0.00014,2]
[328371772,1717271113594,718.42864834,0.00014,2]
[328371773,1717271135594,357.49165,0.00014,2]
[328371774,1717271138225,1500.0,0.00013733,2]
[328371775,1717271138267,1500.0,0.00013772,2]
[328371776,1717271138313,1500.0,0.00013888,2]
[328371777,1717271138354,1500.0,0.00013732,2]
[328371778,1717271138389,1500.0,0.00013743,2]
[328371779,1717271138431,1500.0,0.00013808,2]
[328371780,1717271138463,1480.17062562,0.00013826,2]
[328371781,1717271138602,150.0,0.00013845,2]
[328371782,1717271138656,150.0,0.00013885,2]
[328371783,1717271138719,150.0,0.00013976,2]
[328371784,1717271138765,150.0,0.00013842,2]
[328371785,1717271138822,150.0,0.00013809,2]
[328371786,1717271142330,10062.6839301,0.00013992,2]
[328371787,1717271146941,524.39995676,0.00013882,2]
[328371788,1717271153264,150.0,0.00013891,2]
[328371789,1717271153459,150.0,0.00013889,2]
[328371790,1717271169964,1480.444154,0.00013992,2]
[328371791,1717271178381,501.04498,0.00014,2]
[328371792,1717271221257,297.90971,0.00014,2]
[328371793,1717271244097,718.42864834,0.00014,2]
[328371794,1717271249905,906.6928178,0.00013992,2]
[328371795,1717271251225,469.02291935,0.00013827,2]
[328371796,1717271264116,417.53749,0.00014,2]
[328371797,1717271266167,524.39995676,0.00013766,2]
[328371798,1717271273607,150.0,0.00013958,2]
[328371799,1717271273649,150.0,0.00013803,2]
[328371800,1717271273685,150.0,0.00013894,2]
[328371817,1717271304009,5992.8044109,0.00013992,2]
[328371818,1717271306952,248.25809,0.00014,2]
[328371819,1717271318626,150.0,0.0001397,2]
[328371820,1717271318656,300.0,0.00013885,2]
[328371821,1717271318689,300.0,0.00013853,2]
[328371822,1717271318726,150.0,0.00013897,2]
[328371823,1717271349886,347.9479,0.00014,2]
[328371824,1717271358529,960.2249267,0.00013992,2]
[328371825,1717271378234,1500.0,0.00013965,2]
[328371827,1717271378280,1500.0,0.0001383,2]
[328371829,1717271378313,302.91385407,0.00013961,2]
[328371831,1717271378348,150.0,0.00013738,2]
[328371832,1717271378380,150.0,0.00013964,2]
[328371833,1717271378412,150.0,0.00013964,2]
[328371834,1717271378450,150.0,0.00013822,2]
[328371835,1717271378481,150.0,0.0001388,2]
[328371836,1717271378667,150.0,0.0001396,2]
[328371837,1717271378708,150.0,0.00013951,2]
[328371838,1717271378795,150.0,0.00013883,2]
[328371839,1717271378870,150.0,0.00013923,2]
[328371840,1717271385275,10634.0946687,0.00013992,2]
[328371841,1717271392797,206.88174,0.00014,2]
[328371842,1717271393180,150.0,0.00013795,2]
[328371843,1717271393235,150.0,0.00013906,2]
[328371844,1717271393299,150.0,0.00013738,2]
[328371845,1717271393351,150.0,0.00013771,2]
[328371846,1717271393386,150.0,0.00013911,2]
[328371849,1717271412715,575.8174368,0.00013992,2]
[328371850,1717271431865,-150.0,0.00014001,2]
[328371851,1717271431874,-150.0,0.00014001,2]
[328371852,1717271431884,-150.0,0.00014002,2]
[328371853,1717271431893,-150.0,0.00014003,2]
[328371854,1717271431902,-150.0,0.00014004,2]
[328371855,1717271431911,-1243.88919344,0.0001414,2]
[328371856,1717271431922,-756.11080656,0.0001414,2]
[328371857,1717271431932,-200.0,0.0001414,2]
[328371858,1717271431941,-154.77,0.00014205,2]
[328371859,1717271431950,-150.0,0.0001428,2]
[328371860,1717271431958,-2000.0,0.00014281,2]
[328371861,1717271431968,-200.0,0.00014281,2]
[328371862,1717271431978,-2000.0,0.00014424,2]
[328371863,1717271431988,-499.99,0.00014424,2]
[328371864,1717271431996,-655.81,0.00014543,2]
[328371865,1717271432006,-570.81611255,0.00014568,2]
[328371866,1717271432016,-612.79531378,0.00014988,2]
[328371867,1717271432025,-2255.61954442,0.00014988,2]
[328371868,1717271432036,-1456.34099637,0.00014988,2]
[328371869,1717271432047,-403.82674349,0.00014988,2]
[328371870,1717271432057,-931.355696,0.00014988,2]
[328371871,1717271432068,-599.99905024,0.00014989,2]
[328371872,1717271432077,-8702.03612151,0.0001499,2]
[328371873,1717271432086,-155.0,0.00014998,2]
[328371874,1717271432095,-1065.89322203,0.00014998,2]
[328371875,1717271432103,-168.21493625,0.00014998,2]
[328371876,1717271432112,-158.06112085,0.00014998,2]
[328371877,1717271432122,-155.0,0.00014998,2]
[328371878,1717271432131,-3095.99132127,0.00014998,2]
[328371879,1717271432140,-155.0,0.00014998,2]
[328371880,1717271432149,-155.0,0.00014998,2]
[328371881,1717271432159,-155.0,0.00014998,2]
[328371882,1717271432171,-162.97578809,0.00014998,2]
[328371883,1717271432182,-687.51527312,0.00014998,2]
[328371884,1717271432191,-10958.18144295,0.00014999,2]
[328371885,1717271432200,-257.65395905,0.00015,2]
[328371886,1717271432210,-1044.13352714,0.00015,2]
[328371887,1717271432219,-325.39983263,0.00015,2]
[328371888,1717271432228,-155.24278847,0.00015,2]
[328371889,1717271432241,-200.0,0.00015,2]
[328371890,1717271432250,-184.01261491,0.00015,2]
[328371891,1717271432259,-4834.506562,0.00015,2]
[328371892,1717271432271,-410.493348,0.00015,2]
[328371914,1717271437846,-655.00009,0.00015,2]
[328371915,1717271437856,-620.8177248,0.00015,2]
[328371916,1717271437866,-723.49168548,0.00015,2]
[328371917,1717271437878,-6846.82717122,0.00015,2]
[328371918,1717271437887,-188.36561346,0.00015,2]
[328371919,1717271437897,-289.95659,0.00015,2]
[328371920,1717271437906,-1501.47811342,0.00015655,2]
[328371921,1717271437916,-210.0,0.00015708,2]
[328371922,1717271437925,-800.0,0.00015726,2]
[328371923,1717271437935,-800.0,0.0001589,2]
[328371924,1717271437945,-250.0,0.00015926,2]
[328371925,1717271437955,-800.0,0.00015973,2]
[328371926,1717271437964,-343.74,0.00016004,2]
[328371927,1717271437974,-685.49,0.00016081,2]
[328371928,1717271437984,-9916.82,0.00016116,2]
[328371929,1717271437993,-499.99,0.00016116,2]
[328371930,1717271438003,-197.62,0.00016143,2]
[328371931,1717271438012,-472.45,0.00016168,2]
[328371932,1717271438022,-472.45,0.00016212,2]
[328371933,1717271438031,-472.45,0.00016256,2]
[328371934,1717271438040,-472.45,0.00016301,2]
[328371935,1717271438050,-472.45,0.00016345,2]
[328371936,1717271438059,-472.45,0.00016389,2]
[328371937,1717271438069,-200.0,0.00016412,2]
[328371938,1717271438078,-500.0,0.00016412,2]
[328371939,1717271438087,-106.91637061,0.00016413,2]
[328371940,1717271438099,-893.08362939,0.00016413,2]
[328371941,1717271438108,-500.0,0.00016426,2]
[328371942,1717271438118,-472.45,0.00016434,2]
[328371943,1717271438128,-1351.15,0.00016438,2]
[328371944,1717271438137,-250.0,0.0001644,2]
[328371945,1717271438146,-23900.0,0.00016457,2]
[328371946,1717271438156,-938.36,0.0001646,2]
[328371947,1717271438169,-167.9,0.00016466,2]
[328371948,1717271438178,-1653.07,0.00016468,2]
[328371949,1717271438188,-472.45,0.00016478,2]
[328371950,1717271438198,-1494.7009042,0.000165,2]
[328371951,1717271438207,-472.45,0.00016522,2]
[328371952,1717271438216,-177.96,0.00016553,2]
[328371953,1717271438226,-150.0,0.00016553,2]
[328371955,1717271438235,-472.45,0.00016567,2]
[328371957,1717271438250,-472.45,0.00016611,2]
[328371959,1717271438260,-472.45,0.00016655,2]
[328371961,1717271438269,-472.45,0.000167,2]
[328371963,1717271438278,-178.98,0.00016712,2]
[328371965,1717271438287,-472.45,0.00016744,2]
[328371967,1717271438296,-472.45,0.00016788,2]
[328371969,1717271438305,-655.81,0.00016807,2]
[328371971,1717271438314,-472.45,0.00016832,2]
[328371973,1717271438323,-472.45,0.00016877,2]
[328371975,1717271438332,-472.45,0.00016921,2]
[328371977,1717271438342,-472.45,0.00016965,2]
[328371979,1717271438351,-472.45,0.0001701,2]
[328371981,1717271438360,-954.0,0.000172,2]
[328371983,1717271438369,-481.0,0.000172,2]
[328371985,1717271438378,-1501.47811342,0.00017409,2]
[328371987,1717271438387,-151.01,0.00017442,2]
[328371989,1717271438396,-177.96,0.00017657,2]
[328371991,1717271438406,-648.84323961,0.00018,2]
[328371993,1717271438415,-1000.0,0.00018465,2]
[328371995,1717271438424,-500.0,0.000185,2]
[328371997,1717271438434,-177.96,0.0001876,2]
[328371999,1717271438444,-151.01,0.00018811,2]
[328372001,1717271438453,-153.367,0.00018963,2]
[328372003,1717271438463,-153.367,0.00018963,2]
[328372005,1717271438472,-513.13337588,0.00019,2]
[328372021,1717271438614,-156.00597682,0.00019,2]
[328372023,1717271438624,-410.5352738,0.00019,2]
[328372025,1717271438633,-655.81,0.00019071,2]
[328372027,1717271438642,-1501.47811342,0.00019164,2]
[328372029,1717271438652,-200.0,0.00019178,2]
[328372031,1717271438661,-200.0,0.00019178,2]
[328372033,1717271438670,-200.0,0.00019178,2]
[328372035,1717271438679,-200.0,0.00019178,2]
[328372036,1717271438689,-200.0,0.00019178,2]
[328372037,1717271438698,-200.0,0.00019178,2]
[328372038,1717271438708,-176.0,0.00019178,2]
[328372039,1717271438718,-3887.55227938,0.000192,2]
[328372040,1717271438727,-1653.07,0.00019208,2]
[328372041,1717271438736,-177.96,0.00019864,2]
[328372042,1717271438745,-721.3990245,0.0002,2]
[328372043,1717271438754,-1776.43097931,0.0002,2]
[328372044,1717271438763,-634.50759008,0.0002,2]
[328372045,1717271438773,-863.06900647,0.0002,2]
[328372046,1717271438782,-1074.71543708,0.0002,4]
[328372047,1717271438791,-150.0,0.0002,2]
[328372048,1717271438801,-289.95659,0.0002,2]
[328372049,1717271438810,-226.50038929,0.000201,2]
[328372050,1717271438819,-1000.0,0.00020516,2]
[328372051,1717271438829,-1501.47811342,0.00020918,2]
[328372052,1717271438838,-263.7443793,0.00021,2]
[328372053,1717271438848,-655.81,0.00021335,2]
[328372054,1717271438856,-250.0,0.00021918,2]
[328372055,1717271438866,-170.93,0.00021918,2]
[328372056,1717271438875,-173.95,0.00021918,2]
[328372057,1717271438885,-1653.07,0.00021948,2]
[328372058,1717271438894,-328.7934397,0.00021998,2]
[328372059,1717271438903,-500.0,0.00021998,2]
[328372060,1717271438913,-500.0,0.00021998,2]
[328372061,1717271438922,-500.0,0.00021998,2]
[328372062,1717271438931,-312.6884121,0.00021998,2]
[328372063,1717271438941,-530.79010295,0.00021998,2]
[328372064,1717271438950,-500.0,0.00021998,2]
[328372065,1717271438959,-500.0,0.00021998,2]
[328372066,1717271438968,-500.0,0.00021998,2]
[328372067,1717271438977,-500.0,0.00021998,2]
[328372068,1717271438987,-500.0,0.00021998,2]
[328372069,1717271438996,-500.0,0.00021998,2]
[328372070,1717271439005,-500.0,0.00021998,2]
[328372071,1717271439015,-500.0,0.00021998,2]
[328372072,1717271439024,-500.0,0.00021998,2]
[328372073,1717271439034,-303.89653391,0.00021998,2]
[328372074,1717271439043,-500.0,0.00021998,2]
[328372075,1717271439053,-500.0,0.00021998,2]
[328372076,1717271439062,-500.0,0.00021998,2]
[328372077,1717271439072,-500.0,0.00021998,2]
[328372078,1717271439081,-500.0,0.00021998,2]
[328372079,1717271439091,-500.0,0.00021998,2]
[328372080,1717271439100,-500.0,0.00021998,2]
[328372081,1717271439110,-500.0,0.00021998,2]
[328372082,1717271439120,-500.0,0.00021998,2]
[328372083,1717271439129,-500.0,0.00021998,2]
[328372084,1717271439139,-500.0,0.00021998,2]
[328372085,1717271439149,-8632.31417209,0.00022,2]
[328372086,1717271439159,-1000.0,0.00022568,2]
[328372087,1717271439172,-1501.47811342,0.00022673,2]
[328372088,1717271439182,-28223.15069017,0.000229,5]
[328372089,1717271439192,-545.2909,0.000229,2]
[328372090,1717271439202,-11519.99,0.000229,2]
[328372091,1717271439212,-31026.15122057,0.00023,2]
[328372092,1717271439224,-10654.40506946,0.00023,2]
[328372093,1717271439236,-8410.45460877,0.00023,2]
[328372094,1717271439249,-3131.5,0.00023,2]
[328372095,1717271439265,-667.76472037,0.00023,2]
[328372096,1717271439277,-326.82220256,0.00023,2]
[328372097,1717271439288,-670.31329616,0.00023,2]
[328372098,1717271439299,-804.4421225,0.00023,2]
[328372102,1717271443100,-1196.10265261,0.0001499,2]
[328372108,1717271443211,-1539.23155429,0.0001499,2]
[328372110,1717271443220,-264.38953524,0.00022759,2]
[328372111,1717271443229,-93387.36139344,0.00023,2]
[328372112,1717271443239,-155.0,0.00023,2]
[328372113,1717271443248,-2191.99516317,0.000232,2]
[328372114,1717271443259,-655.81,0.00023599,2]
[328372115,1717271443269,-433.64425027,0.00024,2]
[328372116,1717271443278,-1297.77378915,0.0002421,2]
[328372117,1717271443287,-180.0,0.0002423,2]
[328372118,1717271443307,-158.32,0.00024384,2]
[328372119,1717271443317,-218.01,0.00024384,2]
[328372120,1717271443327,-179.51,0.00024384,2]
[328372121,1717271443337,-151.56,0.00024384,2]
[328372122,1717271443347,-1501.47811342,0.00024427,2]
[328372123,1717271443358,-1000.0,0.0002462,2]
[328372124,1717271443367,-6799.05670199,0.00024798,2]
[328372125,1717271443378,-6799.05670193,0.00024798,2]
[328372126,1717271443388,-6799.05670193,0.00024798,2]
[328372127,1717271443398,-440.0,0.00024883,2]
[328372128,1717271443408,-614.0,0.00024883,2]
[328372129,1717271443418,-1266.0,0.00024883,2]
[328372130,1717271443427,-1546.0,0.00024883,2]
[328372131,1717271443437,-1647.0,0.00024883,2]
[328372132,1717271443447,-2401.0,0.00024883,2]
[328372133,1717271443457,-322.541,0.00024883,2]
[328372134,1717271443466,-445.0,0.00024883,2]
[328372135,1717271443476,-1304.0,0.00024883,2]
[328372136,1717271443486,-209.0,0.00024883,2]
[328372137,1717271443495,-817.523,0.00024883,2]
[328372138,1717271443505,-545.0,0.00024883,2]
[328372139,1717271443517,-1784.193,0.00024883,2]
[328372140,1717271443526,-209.076,0.00024883,2]
[328372141,1717271443536,-1063.0,0.00024883,2]
[328372142,1717271443547,-481.21737942,0.00024889,2]
[328372143,1717271443556,-500.0,0.00024889,2]
[328372144,1717271443567,-500.0,0.00024889,2]
[328372145,1717271443578,-500.0,0.00024889,2]
[328372146,1717271443588,-500.0,0.00024889,2]
[328372147,1717271443598,-500.0,0.00024889,2]
[328372148,1717271443609,-500.0,0.00024889,2]
[328372149,1717271443620,-347.29486572,0.00024889,2]
[328372150,1717271443630,-500.0,0.00024889,2]
[328372151,1717271443641,-255.57227637,0.00024889,2]
[328372152,1717271443651,-3229.40738627,0.000249,2]
[328372153,1717271443661,-10178.10311589,0.00025,2]
[328372154,1717271443670,-1273.77105889,0.00025,2]
[328372155,1717271443680,-155.0,0.00025,2]
[328372156,1717271443691,-155.0,0.00025,2]
[328372157,1717271443701,-224.6769079,0.00025,2]
[328372158,1717271443711,-155.0,0.00025,2]
[328372159,1717271443721,-550.0,0.00025,2]
[328372160,1717271443731,-289.95659,0.00025,2]
[328372161,1717271443742,-1000.0,0.00025205,2]
[328372162,1717271443752,-354.0,0.000253,2]
[328372163,1717271443762,-6799.05670193,0.00025666,2]
[328372164,1717271443772,-655.81,0.00025863,2]
[328372165,1717271443782,-160.21,0.0002589,2]
[328372166,1717271443793,-150.0,0.00026079,2]
[328372167,1717271443802,-1501.47811342,0.00026182,2]
[328372168,1717271443812,-5775.82418342,0.00026301,2]
[328372169,1717271443826,-1241.57438459,0.00026301,2]
[328372170,1717271443844,-5409.17143199,0.00026301,2]
[328372171,1717271443854,-871.81,0.00026575,2]
[328372172,1717271443863,-772.98410283,0.00026575,2]
[328372174,1717271444066,-98.82589717,0.00026575,2]
[328372175,1717271444076,-451.89556945,0.00026575,2]
[328372184,1717271445903,-419.91443055,0.00026575,2]
[328372186,1717271445912,-144.07655993,0.00026897,7]
[328372205,1717272094605,-500.0,0.00017007,2]
[328372206,1717272105192,524.51431416,0.00017259,2]
[328372207,1717272123148,155.0,0.00017259,2]
[328372208,1717272161384,1041.25455622,0.00017259,2]
[328372209,1717272166200,336.13544378,0.00017259,2]
[328372210,1717272166226,197.87568584,0.00017259,2]
[328372211,1717272166252,1377.39,0.00017259,2]
[328372232,1717272632054,-685.15,0.0001717,2]
[328372233,1717272632108,-1721.91195,0.0001717,2]
[328372234,1717272632165,-1592.93805,0.0001717,2]
[328372235,1717272632176,-475.75957132,0.00017257,2]
[328372236,1717272632187,-137.03574246,0.00017257,2]
[328372237,1717272632197,-154.40799618,0.00017258,2]
[328372238,1717272632208,-1345.59200382,0.00017258,2]
[328372239,1717272632217,-24996.15677845,0.00017259,2]
[328372240,1717272632251,-1135.31310245,0.00017259,2]
[328372241,1717272632263,-831.43000004,0.00017259,2]
[328372242,1717272632282,-8668.959969,0.00017259,2]
[328372243,1717272632292,-958.897272,0.00017259,2]
[328372244,1717272632301,-752.03196948,0.00019,2]
[328372245,1717272632310,-155.0,0.00019451,2]
[328372246,1717272632319,-980.0,0.00019451,2]
[328372247,1717272632328,-499.99,0.00019452,2]
[328372248,1717272632337,-150.0,0.00021918,2]
[328372249,1717272632346,-493.78,0.00023585,2]
[328372250,1717272632356,-158.32,0.00024384,2]
[328372251,1717272632365,-1063.0,0.00024606,2]
[328372252,1717272632374,-424.02,0.00025122,2]
[328372253,1717272632383,-21102.83,0.00025228,2]
[328372254,1717272632392,-1000.0,0.00025229,2]
[328372255,1717272632401,-170.93,0.00025248,2]
[328372256,1717272632410,-2751.0,0.00025285,2]
[328372257,1717272632420,-250.0,0.0002532,2]
[328372258,1717272632429,-1000.0,0.0002534,2]
[328372259,1717272632439,-500.0,0.00025432,2]
[328372260,1717272632448,-500.0,0.00025432,2]
[328372262,1717272632457,-500.0,0.00025432,2]
[328372264,1717272632466,-500.0,0.00025432,2]
[328372266,1717272632475,-500.0,0.00025432,2]
[328372268,1717272632484,-500.0,0.00025432,2]
[328372270,1717272632493,-500.0,0.00025432,2]
[328372271,1717272632502,-500.0,0.00025432,2]
[328372273,1717272632511,-500.0,0.00025432,2]
[328372275,1717272632520,-500.0,0.00025432,2]
[328372277,1717272632528,-500.0,0.00025432,2]
[328372279,1717272632537,-500.0,0.00025432,2]
[328372281,1717272632547,-500.0,0.00025432,2]
[328372283,1717272632556,-500.0,0.00025432,2]
[328372285,1717272632565,-500.0,0.00025432,2]
[328372287,1717272632573,-500.0,0.00025432,2]
[328372289,1717272632582,-500.0,0.00025432,2]
[328372291,1717272632591,-500.0,0.00025432,2]
[328372293,1717272632600,-500.0,0.00025432,2]
[328372295,1717272632609,-500.0,0.00025432,2]
[328372297,1717272632618,-500.0,0.00025432,2]
[328372299,1717272632627,-500.0,0.00025432,2]
[328372301,1717272632636,-500.0,0.00025432,2]
[328372303,1717272632645,-500.0,0.00025432,2]
[328372305,1717272632654,-500.0,0.00025432,2]
[328372307,1717272632663,-500.0,0.00025432,2]
[328372309,1717272632672,-500.0,0.00025432,2]
[328372311,1717272632681,-500.0,0.00025432,2]
[328372312,1717272632690,-500.0,0.00025432,2]
[328372314,1717272632699,-500.0,0.00025432,2]
[328372316,1717272632708,-500.0,0.00025432,2]
[328372318,1717272632717,-500.0,0.00025432,2]
[328372320,1717272632726,-500.0,0.00025432,2]
[328372322,1717272632735,-500.0,0.00025432,2]
[328372324,1717272632745,-500.0,0.00025432,2]
[328372326,1717272632758,-500.0,0.00025432,2]
[328372328,1717272632767,-500.0,0.00025432,2]
[328372330,1717272632777,-500.0,0.00025432,2]
[328372332,1717272632786,-500.0,0.00025432,2]
[328372334,1717272632796,-500.0,0.00025432,2]
[328372337,1717272632805,-500.0,0.00025432,2]
[328372339,1717272632814,-500.0,0.00025432,2]
[328372341,1717272632824,-500.0,0.00025432,2]
[328372342,1717272632836,-500.0,0.00025432,2]
[328372344,1717272632847,-500.0,0.00025432,2]
[328372346,1717272632856,-500.0,0.00025432,2]
[328372348,1717272632866,-500.0,0.00025432,2]
[328372350,1717272632875,-500.0,0.00025432,2]
[328372353,1717272632885,-500.0,0.00025432,2]
[328372354,1717272632894,-500.0,0.00025432,2]
[328372356,1717272632903,-500.0,0.00025432,2]
[328372358,1717272632912,-500.0,0.00025432,2]
[328372360,1717272632922,-500.0,0.00025432,2]
[328372362,1717272632931,-500.0,0.00025432,2]
[328372364,1717272632941,-500.0,0.00025432,2]
[328372367,1717272632950,-500.0,0.00025432,2]
[328372369,1717272632959,-500.0,0.00025432,2]
[328372371,1717272632968,-500.0,0.00025432,2]
[328372373,1717272632977,-500.0,0.00025432,2]
[328372375,1717272632987,-500.0,0.00025432,2]
[328372377,1717272632996,-500.0,0.00025432,2]
[328372378,1717272633005,-500.0,0.00025432,2]
[328372380,1717272633014,-500.0,0.00025432,2]
[328372382,1717272633022,-500.0,0.00025432,2]
[328372384,1717272633031,-500.0,0.00025432,2]
[328372386,1717272633040,-500.0,0.00025432,2]
[328372388,1717272633049,-500.0,0.00025432,2]
[328372390,1717272633058,-500.0,0.00025432,2]
[328372392,1717272633067,-500.0,0.00025432,2]
[328372394,1717272633076,-500.0,0.00025432,2]
[328372396,1717272633085,-500.0,0.00025432,2]
[328372398,1717272633094,-500.0,0.00025432,2]
[328372400,1717272633103,-500.0,0.00025432,2]
[328372402,1717272633111,-500.0,0.00025432,2]
[328372404,1717272633121,-500.0,0.00025432,2]
[328372406,1717272633130,-500.0,0.00025432,2]
[328372408,1717272633140,-500.0,0.00025432,2]
[328372409,1717272633149,-500.0,0.00025432,2]
[328372410,1717272633160,-500.0,0.00025432,2]